[Event "2. Itzehoer Schach Open"]
[Site "Itzehoe, Germany"]
[Date "2023.04.29"]
[Round "1.38"]
[White "Marzik, Arne"]
[Black "Hock, Reiner"]
[Result "1-0"]
[TimeControl "90 min für 40 Züge, Rest 30 min + 30 Sek pro Zug"]
[WhiteElo "1545"]
[BlackElo "1338"]

1. d4 {[%clk 01:30:56]} {[%emt 00:00:02]} Nf6 {[%clk 01:30:42]} {[%emt
00:00:19]} 2. Nf3 {[%clk 01:31:21]} {[%emt 00:00:06]} d5 {[%clk 01:30:54]}
{[%emt 00:00:18]} 3. g3 {[%clk 01:31:40]} {[%emt 00:00:11]} e6 {[%clk
01:30:16]} {[%emt 00:01:09]} 4. c4 {[%clk 01:32:02]} {[%emt 00:00:08]} c5
{[%clk 01:29:49]} {[%emt 00:00:56]} 5. cxd5 {[%clk 01:32:19]} {[%emt 00:00:13]}
Nxd5 {[%clk 01:29:21]} {[%emt 00:00:58]} 6. Bg2 {[%clk 01:27:14]} {[%emt
00:05:35]} Be7 {[%clk 01:29:19]} {[%emt 00:00:32]} 7. dxc5 {[%clk 01:24:56]}
{[%emt 00:02:49]} Qa5+ {[%clk 01:26:58]} {[%emt 00:02:51]} 8. Bd2 {[%clk
01:24:01]} {[%emt 00:01:24]} Qxc5 {[%clk 01:27:00]} {[%emt 00:00:28]} 9. O-O
{[%clk 01:24:11]} {[%emt 00:00:21]} Qb6 {[%clk 01:26:48]} {[%emt 00:00:41]} 10.
Qc2 {[%clk 01:21:12]} {[%emt 00:03:28]} O-O {[%clk 01:24:41]} {[%emt 00:02:38]}
11. Ng5 {[%clk 01:08:40]} {[%emt 00:13:01]} Nf6 {[%clk 01:24:51]} {[%emt
00:00:21]} 12. Nc3 {[%clk 01:08:24]} {[%emt 00:00:46]} h6 {[%clk 01:24:40]}
{[%emt 00:00:40]} 13. Nge4 {[%clk 01:08:02]} {[%emt 00:00:52]} Nbd7 {[%clk
01:24:35]} {[%emt 00:00:36]} 14. Rac1 {[%clk 00:53:36]} {[%emt 00:14:56]} Nxe4
{[%clk 01:24:35]} {[%emt 00:00:30]} 15. Nxe4 {[%clk 00:53:08]} {[%emt
00:00:57]} f5 {[%clk 01:24:43]} {[%emt 00:00:21]} 16. Nc3 {[%clk 00:51:57]}
{[%emt 00:01:43]} Rb8 {[%clk 01:21:58]} {[%emt 00:03:14]} 17. Bf4 {[%clk
00:40:11]} {[%emt 00:12:17]} e5 {[%clk 01:17:58]} {[%emt 00:04:31]} 18. Nd5
{[%clk 00:38:34]} {[%emt 00:02:06]} Qd8 {[%clk 01:14:57]} {[%emt 00:03:31]} 19.
Nxe7+ {[%clk 00:35:22]} {[%emt 00:03:42]} Qxe7 {[%clk 01:14:44]} {[%emt
00:00:42]} 20. Bd2 {[%clk 00:34:07]} {[%emt 00:01:46]} Nb6 {[%clk 01:14:58]}
{[%emt 00:00:16]} 21. a3 {[%clk 00:28:52]} {[%emt 00:05:45]} Qe6 {[%clk
01:11:36]} {[%emt 00:03:51]} 22. Bc3 {[%clk 00:22:51]} {[%emt 00:06:32]} Bd7
{[%clk 01:06:31]} {[%emt 00:00:34]} 23. Qd3 {[%clk 00:21:56]} {[%emt 00:06:25]}
Rfd8 {[%clk 01:06:02]} {[%emt 00:00:58]} 24. Qe3 {[%clk 00:21:30]} {[%emt
00:00:57]} Nd5 {[%clk 01:03:04]} {[%emt 00:03:28]} 25. Qxe5 {[%clk 00:20:20]}
{[%emt 00:01:41]} Nxc3 {[%clk 01:02:19]} {[%emt 00:01:14]} 26. Qxe6+ {[%clk
00:18:28]} {[%emt 00:02:23]} Bxe6 {[%clk 01:02:05]} {[%emt 00:00:22]} 27. Rxc3
{[%clk 00:18:58]} Bd5 {[%clk 01:01:39]} {[%emt 00:01:18]} 28. Rfc1 {[%clk
00:08:37]} {[%emt 00:10:51]} Bc6 {[%clk 00:59:53]} {[%emt 00:02:16]} 29. Bxc6
{[%clk 00:08:23]} {[%emt 00:00:45]} bxc6 {[%clk 01:00:14]} {[%emt 00:00:09]} 30.
b4 {[%clk 00:08:35]} {[%emt 00:00:18]} Rd2 {[%clk 01:00:15]} {[%emt 00:00:28]}
31. e3 {[%clk 00:08:15]} {[%emt 00:00:50]} Rbd8 {[%clk 01:00:10]} {[%emt
00:00:35]} 32. Rxc6 {[%clk 00:08:04]} {[%emt 00:00:41]} Ra2 {[%clk 01:00:27]}
{[%emt 00:00:12]} 33. Rc8 {[%clk 00:08:06]} {[%emt 00:00:29]} Rxc8 {[%clk
01:00:35]} {[%emt 00:00:22]} 34. Rxc8+ {[%clk 00:08:30]} {[%emt 00:00:06]} Kh7
{[%clk 01:00:25]} {[%emt 00:00:15]} 35. Rc3 {[%clk 00:08:59]} a6 {[%clk
00:59:53]} {[%emt 00:01:28]} 36. Kg2 {[%clk 00:09:18]} {[%emt 00:00:11]} h5
{[%clk 01:00:05]} {[%emt 00:00:17]} 37. Rc5 {[%clk 00:06:50]} {[%emt 00:02:58]}
g6 {[%clk 01:00:02]} {[%emt 00:00:34]} 38. Ra5 {[%clk 00:07:12]} {[%emt
00:00:09]} Kh6 {[%clk 00:59:15]} {[%emt 00:01:17]} 39. Rxa6 {[%clk 00:07:31]}
{[%emt 00:00:10]} Rb2 {[%clk 00:59:31]} {[%emt 00:00:13]} 40. h4 {[%clk
00:04:53]} {[%emt 00:03:08]} Rb3 {[%clk 00:59:14]} {[%emt 00:00:47]} 41. Ra5
{[%clk 00:04:35]} {[%emt 00:00:49]} Kg7 {[%clk 00:57:22]} {[%emt 00:02:22]} 42.
b5 {[%clk 00:04:49]} {[%emt 00:00:16]} Kf7 {[%clk 00:57:07]} {[%emt 00:00:45]}
43. a4 {[%clk 00:05:04]} {[%emt 00:00:16]} Rb4 {[%clk 00:57:16]} {[%emt
00:00:20]} 44. Ra6 {[%clk 00:05:14]} {[%emt 00:00:19]} Ke7 {[%clk 00:56:47]}
{[%emt 00:01:00]} 45. b6 {[%clk 00:05:30]} {[%emt 00:00:13]} Kd7 {[%clk
00:56:40]} {[%emt 00:00:11]} 46. a5 {[%clk 00:05:58]} {[%emt 00:00:30]} Kc6
{[%clk 00:56:37]} {[%emt 00:00:32]} 47. Ra7 {[%clk 00:06:05]} {[%emt 00:00:22]}
Rb5 {[%clk 00:56:16]} {[%emt 00:00:52]} 48. Kf3 {[%clk 00:06:00]} {[%emt
00:00:34]} Rb4 {[%clk 00:53:42]} {[%emt 00:03:04]} 49. b7 {[%clk 00:05:29]}
{[%emt 00:01:02]} Rxb7 {[%clk 00:53:36]} {[%emt 00:00:36]} 50. Rxb7 {[%clk
00:05:54]} {[%emt 00:00:06]} Kxb7 {[%clk 00:53:58]} {[%emt 00:00:08]} 51. Kf4
{[%clk 00:06:17]} {[%emt 00:00:05]} Ka6 {[%clk 00:54:16]} {[%emt 00:00:13]} 52.
Kg5 {[%clk 00:06:34]} {[%emt 00:00:13]} Kxa5 {[%clk 00:54:39]} {[%emt
00:00:08]} 53. Kxg6 {[%clk 00:06:59]} {[%emt 00:00:04]} 1-0

[Event "2. Itzehoer Schach Open"]
[Site "Itzehoe, Germany"]
[Date "2023.04.29"]
[Round "1.41"]
[White "Prigandt, Junis"]
[Black "Lueders Vega, Iago Ernst"]
[Result "0-1"]
[TimeControl "90 min für 40 Züge, Rest 30 min + 30 Sek pro Zug"]
[WhiteElo "995"]
[BlackElo "1333"]

1. e4 {[%clk 01:31:00]} e5 {[%clk 01:30:54]} {[%emt 00:00:07]} 2. Nf3 {[%clk
01:31:06]} {[%emt 00:00:23]} Nc6 {[%clk 01:31:15]} {[%emt 00:00:09]} 3. Bc4
{[%clk 01:31:24]} {[%emt 00:00:12]} Bc5 {[%clk 01:31:38]} {[%emt 00:00:07]} 4.
d3 {[%clk 01:31:28]} {[%emt 00:00:26]} d6 {[%clk 01:31:33]} {[%emt 00:00:34]} 5.
Ng5 {[%clk 01:31:35]} {[%emt 00:00:23]} Nh6 {[%clk 01:30:35]} {[%emt 00:01:28]}
6. O-O {[%clk 01:30:48]} {[%emt 00:01:18]} Bg4 {[%clk 01:30:09]} {[%emt
00:00:56]} 7. Bxf7+ {[%clk 01:30:44]} {[%emt 00:00:34]} Ke7 {[%clk 01:28:59]}
{[%emt 00:01:39]} 8. Qd2 {[%clk 01:29:14]} {[%emt 00:02:01]} Nxf7 {[%clk
01:28:58]} {[%emt 00:00:30]} 9. h3 {[%clk 01:28:16]} {[%emt 00:01:29]} Bd7
{[%clk 01:28:13]} {[%emt 00:01:16]} 10. Nc3 {[%clk 01:28:09]} {[%emt 00:00:36]}
Nxg5 {[%clk 01:27:59]} {[%emt 00:00:42]} 11. Qxg5+ {[%clk 01:28:30]} {[%emt
00:00:10]} Kf7 {[%clk 01:28:14]} {[%emt 00:00:15]} 12. Qh5+ {[%clk 01:27:53]}
{[%emt 00:01:07]} g6 {[%clk 01:28:04]} {[%emt 00:00:40]} 13. Qf3+ {[%clk
01:27:44]} {[%emt 00:00:39]} Qf6 {[%clk 01:28:18]} {[%emt 00:00:15]} 14. Qxf6+
{[%clk 01:27:16]} {[%emt 00:00:58]} Kxf6 {[%clk 01:28:20]} {[%emt 00:00:29]} 15.
Nd5+ {[%clk 01:27:39]} {[%emt 00:00:07]} Kf7 {[%clk 01:28:26]} {[%emt
00:00:23]} 16. Nxc7 {[%clk 01:27:20]} {[%emt 00:00:49]} Rac8 {[%clk 01:28:46]}
{[%emt 00:00:11]} 17. Nb5 {[%clk 01:27:19]} {[%emt 00:00:32]} a6 {[%clk
01:28:48]} {[%emt 00:00:28]} 18. Nc3 {[%clk 01:27:13]} {[%emt 00:00:35]} Nd4
{[%clk 01:28:58]} {[%emt 00:00:20]} 19. Bg5 {[%clk 01:26:30]} {[%emt 00:01:13]}
Nxc2 {[%clk 01:28:56]} {[%emt 00:00:31]} 20. Rac1 {[%clk 01:26:08]} {[%emt
00:00:52]} Nd4 {[%clk 01:29:07]} {[%emt 00:00:19]} 21. Rfe1 {[%clk 01:24:16]}
{[%emt 00:02:22]} Rhf8 {[%emt 00:02:38]} 22. Na4 {[%clk 01:23:04]} Bxa4 {[%clk
01:27:55]} {[%emt 00:01:15]} 23. b3 {[%clk 01:20:38]} {[%emt 00:02:57]} Bb5
{[%clk 01:28:08]} {[%emt 00:00:17]} 24. Rc3 {[%clk 01:20:11]} {[%emt 00:00:57]}
Bb4 {[%clk 01:28:13]} {[%emt 00:00:24]} 25. Rxc8 {[%clk 01:19:18]} {[%emt
00:01:23]} Rxc8 {[%clk 01:28:36]} {[%emt 00:00:08]} 26. Rd1 {[%clk 01:16:34]}
{[%emt 00:03:14]} Rc2 {[%clk 01:28:07]} {[%emt 00:00:59]} 27. a4 {[%clk
01:13:55]} {[%emt 00:03:10]} Bd7 {[%clk 01:27:39]} {[%emt 00:00:58]} 28. Kf1
{[%clk 01:11:40]} {[%emt 00:02:45]} Nxb3 {[%clk 01:25:33]} {[%emt 00:02:35]} 29.
g4 {[%clk 01:08:35]} {[%emt 00:03:35]} Bc5 {[%clk 01:25:27]} {[%emt 00:00:35]}
30. Bh4 {[%clk 01:08:11]} {[%emt 00:00:55]} Rc1 {[%clk 01:25:42]} {[%emt
00:00:14]} 31. Rxc1 {[%clk 01:08:29]} {[%emt 00:00:13]} Nxc1 {[%clk 01:25:56]}
{[%emt 00:00:15]} 0-1

[Event "2. Itzehoer Schach Open"]
[Site "Itzehoe, Germany"]
[Date "2023.04.29"]
[Round "1.46"]
[White "Lorenzen, Lars"]
[Black "Greiner, Andre"]
[Result "1-0"]
[TimeControl "90 min für 40 Züge, Rest 30 min + 30 Sek pro Zug"]
[WhiteElo "1218"]
[BlackElo "796"]

1. Nf3 {[%clk 01:30:58]} {[%emt 00:00:01]} d5 {[%clk 01:30:36]} {[%emt
00:00:24]} 2. c4 {[%clk 01:31:24]} {[%emt 00:00:05]} d4 {[%clk 01:29:46]}
{[%emt 00:01:19]} 3. b4 {[%clk 01:31:43]} {[%emt 00:00:11]} Bf5 {[%clk
01:29:20]} {[%emt 00:00:56]} 4. Bb2 {[%clk 01:31:57]} {[%emt 00:00:17]} d3
{[%clk 01:25:32]} {[%emt 00:04:18]} 5. exd3 {[%clk 01:31:57]} {[%emt 00:00:20]}
e6 {[%clk 01:25:18]} {[%emt 00:00:54]} 6. Nd4 {[%clk 01:31:00]} {[%emt
00:01:27]} Bxb4 {[%clk 01:23:57]} {[%emt 00:01:50]} 7. Qa4+ {[%clk 01:31:04]}
{[%emt 00:00:27]} Nc6 {[%clk 01:22:35]} {[%emt 00:01:52]} 8. Nxc6 {[%clk
01:31:27]} {[%emt 00:00:06]} Bxd2+ {[%clk 01:19:04]} {[%emt 00:04:01]} 9. Kxd2
{[%clk 01:31:44]} {[%emt 00:00:14]} bxc6 {[%clk 01:16:34]} {[%emt 00:03:00]} 10.
Qxc6+ {[%clk 01:32:00]} {[%emt 00:00:14]} Kf8 {[%clk 01:16:53]} {[%emt
00:00:42]} 11. Qf3 {[%clk 01:32:29]} {[%emt 00:00:29]} Rb8 {[%clk 01:17:16]}
{[%emt 00:00:07]} 12. Ba3+ {[%clk 01:31:48]} {[%emt 00:01:12]} Ne7 {[%clk
01:17:27]} {[%emt 00:00:19]} 13. Nc3 {[%clk 01:31:38]} {[%emt 00:00:40]} g6
{[%clk 01:15:15]} {[%emt 00:02:41]} 14. Be2 {[%clk 01:31:58]} {[%emt 00:00:11]}
Kg7 {[%clk 01:13:26]} {[%emt 00:02:18]} 15. Nb5 {[%clk 01:31:59]} {[%emt
00:00:30]} Nc6 {[%clk 01:12:16]} {[%emt 00:01:39]} 16. Qxc6 {[%emt 00:01:43]}
Qg5+ {[%emt 00:01:31]} 17. Kc2 {[%clk 01:28:47]} {[%emt 00:00:29]} Rhd8 {[%clk
01:10:26]} {[%emt 00:02:18]} 18. Bb2+ {[%clk 01:28:54]} {[%emt 00:00:24]} Kh6
{[%clk 01:09:54]} {[%emt 00:01:02]} 19. Bc1 {[%clk 01:29:08]} {[%emt 00:00:17]}
Bxd3+ {[%clk 01:08:26]} {[%emt 00:01:58]} 20. Bxd3 {[%clk 01:29:25]} {[%emt
00:00:13]} Qxc1+ {[%clk 01:08:12]} {[%emt 00:00:43]} 21. Raxc1 {[%clk
01:29:44]} {[%emt 00:00:11]} e5 {[%clk 01:08:04]} {[%emt 00:00:39]} 22. Qxc7
{[%clk 01:29:54]} {[%emt 00:00:20]} Rbc8 {[%clk 01:07:51]} {[%emt 00:00:43]} 23.
Qxe5 {[%clk 01:30:09]} {[%emt 00:00:15]} Rd7 {[%clk 01:07:32]} {[%emt
00:00:49]} 24. g4 {[%clk 01:30:21]} {[%emt 00:00:17]} g5 {[%clk 01:04:31]}
{[%emt 00:03:31]} 25. Qf6# {[%clk 01:30:08]} {[%emt 00:00:12]} 1-0

[Event "2. Itzehoer Schach Open"]
[Site "Itzehoe, Germany"]
[Date "2023.04.29"]
[Round "1.47"]
[White "Steinbach, Aaron"]
[Black "Roebers, Bregje"]
[Result "1-0"]
[TimeControl "90 min für 40 Züge, Rest 30 min + 30 Sek pro Zug"]
[WhiteElo "787"]
[BlackElo "1162"]

1. d4 {[%clk 01:30:58]} g6 {[%clk 01:30:56]} {[%emt 00:00:05]} 2. e4 {[%clk
01:31:18]} {[%emt 00:00:11]} Bg7 {[%clk 01:31:11]} {[%emt 00:00:14]} 3. Nc3
{[%clk 01:31:23]} {[%emt 00:00:26]} d6 {[%clk 01:31:20]} {[%emt 00:00:20]} 4.
f4 {[%clk 01:31:34]} {[%emt 00:00:19]} e5 {[%clk 01:27:25]} {[%emt 00:04:26]} 5.
Nf3 {[%clk 01:30:56]} {[%emt 00:01:07]} exd4 {[%clk 01:27:23]} {[%emt
00:00:32]} 6. Nxd4 {[%clk 01:30:47]} {[%emt 00:00:39]} Nc6 {[%clk 01:26:26]}
{[%emt 00:01:28]} 7. Bb5 {[%clk 01:30:24]} {[%emt 00:00:53]} Bd7 {[%clk
01:26:37]} {[%emt 00:00:18]} 8. Nxc6 {[%clk 01:29:19]} {[%emt 00:01:34]} bxc6
{[%clk 01:26:59]} {[%emt 00:00:08]} 9. Bd3 {[%clk 01:29:13]} {[%emt 00:00:36]}
Ne7 {[%clk 01:27:04]} {[%emt 00:00:26]} 10. Bd2 {[%clk 01:26:44]} {[%emt
00:02:59]} O-O {[%clk 01:24:14]} {[%emt 00:03:20]} 11. O-O {[%clk 01:24:31]}
{[%emt 00:02:43]} f5 {[%clk 01:21:31]} {[%emt 00:03:13]} 12. Qf3 {[%clk
01:22:50]} {[%emt 00:02:12]} fxe4 {[%clk 01:11:51]} {[%emt 00:10:09]} 13. Nxe4
{[%clk 01:22:38]} {[%emt 00:00:42]} d5 {[%clk 01:08:06]} {[%emt 00:04:15]} 14.
Ng5 {[%clk 01:21:36]} {[%emt 00:01:31]} h6 {[%clk 01:02:44]} {[%emt 00:05:52]}
15. Nh3 {[%clk 01:20:32]} {[%emt 00:01:35]} Bf5 {[%clk 00:59:13]} {[%emt
00:04:01]} 16. Bb4 {[%clk 01:18:20]} {[%emt 00:02:42]} Rf7 {[%clk 00:44:49]}
{[%emt 00:14:54]} 17. Rad1 {[%clk 01:16:43]} {[%emt 00:02:08]} Kh7 {[%clk
00:42:39]} {[%emt 00:02:39]} 18. c4 {[%clk 01:16:47]} {[%emt 00:00:26]} Bd4+
{[%clk 00:37:54]} {[%emt 00:05:15]} 19. Kh1 {[%clk 01:16:16]} {[%emt 00:01:01]}
c5 {[%clk 00:38:09]} {[%emt 00:00:15]} 20. Bxf5 {[%clk 01:15:23]} {[%emt
00:01:24]} Rxf5 {[%clk 00:37:03]} {[%emt 00:01:35]} 21. Qa3 {[%clk 01:14:13]}
{[%emt 00:01:40]} Qd6 {[%clk 00:35:45]} {[%emt 00:01:47]} 22. Rxd4 {[%clk
01:13:57]} {[%emt 00:00:45]} cxb4 {[%clk 00:35:57]} {[%emt 00:00:19]} 23. Qe3
{[%clk 01:12:02]} {[%emt 00:02:25]} c5 {[%clk 00:34:28]} {[%emt 00:01:59]} 24.
Rdd1 {[%clk 01:10:37]} {[%emt 00:01:54]} d4 {[%clk 00:34:12]} {[%emt 00:00:47]}
25. Qe4 {[%clk 01:08:39]} {[%emt 00:02:28]} Rb8 {[%clk 00:32:51]} {[%emt
00:01:50]} 26. Rfe1 {[%clk 01:07:41]} {[%emt 00:01:29]} Nc6 {[%clk 00:32:38]}
{[%emt 00:00:43]} 27. g4 {[%clk 01:02:52]} {[%emt 00:05:19]} Rf7 {[%clk
00:29:31]} {[%emt 00:03:37]} 28. Re3 {[%clk 00:56:56]} {[%emt 00:06:25]} Na5
{[%clk 00:27:56]} {[%emt 00:02:05]} 29. b3 {[%clk 00:56:59]} {[%emt 00:00:27]}
Qc6 {[%clk 00:28:00]} {[%emt 00:00:26]} 30. Qxc6 {[%clk 00:54:08]} {[%emt
00:03:21]} Nxc6 {[%clk 00:28:22]} {[%emt 00:00:09]} 31. Re6 {[%clk 00:53:52]}
{[%emt 00:00:46]} Rc8 {[%clk 00:27:45]} {[%emt 00:01:07]} 32. Kg2 {[%clk
00:53:32]} {[%emt 00:00:49]} Rcc7 {[%clk 00:27:18]} {[%emt 00:00:58]} 33. Kf2
{[%clk 00:53:00]} {[%emt 00:01:02]} Nd8 {[%clk 00:26:53]} {[%emt 00:00:55]} 34.
Re5 {[%clk 00:52:03]} {[%emt 00:01:27]} Rfe7 {[%clk 00:26:51]} {[%emt
00:00:32]} 35. Ng1 {[%clk 00:49:57]} {[%emt 00:02:35]} Nf7 {[%clk 00:26:01]}
{[%emt 00:01:20]} 36. Re2 {[%clk 00:47:57]} {[%emt 00:02:31]} Kg7 {[%clk
00:25:03]} {[%emt 00:01:28]} 37. h4 {[%clk 00:47:15]} {[%emt 00:01:12]} Nd6
{[%clk 00:24:40]} {[%emt 00:00:53]} 38. Kf3 {[%clk 00:44:38]} {[%emt 00:03:05]}
Kf7 {[%clk 00:24:25]} {[%emt 00:00:46]} 39. Nh3 {[%clk 00:42:54]} {[%emt
00:02:14]} Rxe2 {[%clk 00:23:56]} {[%emt 00:01:00]} 40. Kxe2 {[%clk 00:42:39]}
{[%emt 00:00:44]} Ne4 {[%clk 00:24:11]} {[%emt 00:00:16]} 41. Kd3 {[%clk
00:41:59]} {[%emt 00:01:10]} Nc3 {[%clk 00:24:07]} {[%emt 00:00:33]} 42. Ra1
{[%clk 00:41:24]} {[%emt 00:03:40]} Re7 {[%clk 00:24:52]} {[%emt 00:00:14]} 43.
Ng1 {[%clk 00:40:44]} {[%emt 00:01:09]} Re3+ {[%clk 00:25:02]} {[%emt
00:00:20]} 44. Kd2 {[%clk 00:40:51]} {[%emt 00:00:23]} Rg3 {[%clk 00:24:39]}
{[%emt 00:00:53]} 45. g5 {[%clk 00:40:56]} {[%emt 00:00:25]} hxg5 {[%clk
00:24:49]} {[%emt 00:00:21]} 46. fxg5 {[%clk 00:40:47]} {[%emt 00:00:39]} Rg2+
{[%clk 00:24:05]} {[%emt 00:01:14]} 47. Kd3 {[%clk 00:40:43]} {[%emt 00:00:27]}
Kg7 {[%clk 00:22:56]} {[%emt 00:01:46]} 48. a3 {[%clk 00:38:59]} {[%emt
00:02:15]} Ra2 {[%clk 00:22:33]} {[%emt 00:00:53]} 49. Rxa2 {[%clk 00:39:06]}
{[%emt 00:00:22]} Nxa2 {[%clk 00:22:51]} {[%emt 00:00:12]} 50. axb4 {[%clk
00:39:06]} {[%emt 00:00:30]} Nxb4+ {[%clk 00:23:11]} {[%emt 00:00:10]} 51. Ke4
{[%clk 00:39:12]} {[%emt 00:00:23]} Kf7 {[%clk 00:22:05]} {[%emt 00:01:37]} 52.
Ke5 {[%clk 00:39:23]} {[%emt 00:00:19]} Na2 {[%clk 00:21:11]} {[%emt 00:01:24]}
53. Kd5 {[%clk 00:39:09]} {[%emt 00:00:44]} Nc1 {[%clk 00:21:27]} {[%emt
00:00:14]} 54. Kxc5 {[%clk 00:39:23]} {[%emt 00:00:15]} d3 {[%clk 00:20:58]}
{[%emt 00:01:00]} 55. Nf3 {[%clk 00:39:29]} {[%emt 00:00:23]} Nxb3+ {[%clk
00:21:15]} {[%emt 00:00:14]} 56. Kd5 {[%clk 00:39:26]} {[%emt 00:00:33]} a5
{[%clk 00:20:44]} {[%emt 00:01:02]} 57. c5 {[%clk 00:39:29]} {[%emt 00:00:26]}
Nxc5 {[%clk 00:20:40]} {[%emt 00:00:34]} 58. Kxc5 {[%clk 00:39:51]} {[%emt
00:00:08]} Ke6 {[%clk 00:20:45]} {[%emt 00:00:25]} 59. Kd4 {[%clk 00:39:40]}
{[%emt 00:00:40]} Kf5 {[%clk 00:20:58]} {[%emt 00:00:18]} 60. Kxd3 {[%clk
00:39:54]} {[%emt 00:00:16]} Kg4 {[%clk 00:20:11]} {[%emt 00:01:17]} 61. Kc3
{[%clk 00:38:56]} {[%emt 00:01:28]} Kf4 {[%clk 00:19:19]} {[%emt 00:01:22]} 1-0

[Event "2. Itzehoer Schach Open"]
[Site "Itzehoe, Germany"]
[Date "2023.04.29"]
[Round "1.44"]
[White "Bruehl, Rainer"]
[Black "Hieke, Andrea"]
[Result "1-0"]
[TimeControl "90 min für 40 Züge, Rest 30 min + 30 Sek pro Zug"]
[WhiteElo "1269"]
[BlackElo "912"]

1. d4 {[%clk 01:30:55]} {[%emt 00:00:04]} d5 {[%clk 01:30:39]} {[%emt
00:00:21]} 2. c4 {[%clk 01:31:08]} {[%emt 00:00:17]} c6 {[%clk 01:30:43]}
{[%emt 00:00:27]} 3. Nf3 {[%clk 01:31:17]} {[%emt 00:00:20]} Nf6 {[%clk
01:30:55]} {[%emt 00:00:18]} 4. Nc3 {[%clk 01:31:14]} {[%emt 00:00:33]} Bf5
{[%clk 01:31:04]} {[%emt 00:00:21]} 5. e3 {[%clk 01:30:50]} {[%emt 00:00:53]}
e6 {[%clk 01:31:28]} {[%emt 00:00:07]} 6. Be2 {[%clk 01:29:18]} {[%emt
00:02:03]} Bb4 {[%clk 01:30:59]} {[%emt 00:00:59]} 7. a3 {[%clk 01:22:41]}
{[%emt 00:07:07]} Ba5 {[%clk 01:31:20]} {[%emt 00:00:09]} 8. b4 {[%clk
01:22:22]} {[%emt 00:00:49]} Bc7 {[%clk 01:31:16]} {[%emt 00:00:34]} 9. cxd5
{[%clk 01:19:00]} {[%emt 00:03:52]} cxd5 {[%clk 01:31:20]} {[%emt 00:00:26]} 10.
Ne5 {[%clk 01:17:33]} {[%emt 00:01:57]} O-O {[%clk 01:31:04]} {[%emt 00:00:46]}
11. Bf3 {[%clk 01:14:01]} {[%emt 00:04:02]} Ne4 {[%clk 01:29:32]} {[%emt
00:02:01]} 12. Nxe4 {[%clk 01:13:29]} {[%emt 00:01:01]} dxe4 {[%clk 01:29:44]}
{[%emt 00:00:18]} 13. Bg4 {[%clk 01:13:51]} {[%emt 00:00:09]} Nc6 {[%clk
01:27:25]} {[%emt 00:02:49]} 14. Nxc6 {[%clk 01:07:43]} {[%emt 00:06:38]} bxc6
{[%clk 01:27:47]} {[%emt 00:00:08]} 15. O-O {[%clk 01:05:42]} {[%emt 00:02:31]}
a5 {[%clk 01:27:46]} {[%emt 00:00:32]} 16. Rb1 {[%clk 01:04:49]} {[%emt
00:01:22]} Qd6 {[%clk 01:26:29]} {[%emt 00:01:48]} 17. g3 {[%clk 01:04:50]}
{[%emt 00:00:28]} Rfb8 {[%clk 01:25:58]} {[%emt 00:01:00]} 18. Bd2 {[%clk
01:04:24]} {[%emt 00:00:57]} e5 {[%clk 01:25:57]} {[%emt 00:00:32]} 19. Bxf5
{[%clk 01:04:29]} {[%emt 00:00:25]} exd4 {[%clk 01:26:00]} {[%emt 00:00:26]} 20.
Bxe4 {[%clk 01:04:28]} {[%emt 00:00:31]} dxe3 {[%clk 01:25:29]} {[%emt
00:01:02]} 21. Bxe3 {[%clk 01:04:41]} {[%emt 00:00:17]} axb4 {[%clk 01:25:26]}
{[%emt 00:00:33]} 22. Qxd6 {[%clk 01:04:48]} {[%emt 00:00:23]} Bxd6 {[%clk
01:25:45]} {[%emt 00:00:10]} 23. axb4 {[%clk 01:04:52]} {[%emt 00:00:27]} Bxb4
{[%clk 01:25:52]} {[%emt 00:00:22]} 24. Bxc6 {[%clk 01:04:34]} {[%emt
00:00:48]} Ra6 {[%clk 01:25:24]} {[%emt 00:01:00]} 25. Bf4 {[%clk 01:04:25]}
{[%emt 00:00:38]} Rbb6 {[%clk 01:23:52]} {[%emt 00:02:00]} 26. Bd5 {[%clk
01:04:05]} {[%emt 00:00:52]} Bd6 {[%clk 01:23:05]} {[%emt 00:01:17]} 27. Bxd6
{[%clk 01:04:11]} {[%emt 00:00:24]} Rxb1 {[%clk 01:22:45]} {[%emt 00:00:50]} 28.
Rxb1 {[%clk 01:04:38]} {[%emt 00:00:04]} 1-0